bitfinex-derivatives/quotes_SOLF0:USTF0_20260211
["timestamp","ask_amount","ask_price","bid_price","bid_amount"]
[1770832314936,11.3334,79.455,79.403,32.3257315]
[1770832315335,10.90456546,79.48,79.403,32.3257315]
[1770832316139,10.90456546,79.44,79.387,32.3257749]
[1770832317438,11.3373,79.428,79.387,32.3257749]
[1770832317744,11.3373,79.428,79.375,11.3447]
[1770832317745,10.90456546,79.44,79.36,32.39402312]
[1770832318735,11.3384,79.42,79.367,11.3459]
[1770832318930,11.3384,79.42,79.368,32.43613459]
[1770832319139,10.90456546,79.44,79.368,32.43613459]
[1770832319934,100.48,79.462,79.384,32.43629175]
[1770832320242,10.90456546,79.44,79.384,32.43629175]
[1770832320444,10.90456546,79.44,79.341,185.1]
[1770832320445,11.3385,79.419,79.367,11.3458]
[1770832320648,11.3385,79.419,79.368,32.43629175]
[1770832321841,11.3385,79.419,79.369,43.77707647]
[1770832322041,11.3385,79.419,79.37,32.43147647]
[1770832322947,11.3375,79.427,79.375,32.38246279]
[1770832323749,11.3375,79.427,79.377,11.3445]
[1770832323947,11.3375,79.427,79.378,32.38255846]
[1770832324942,11.3375,79.427,79.38,32.70297057]
[1770832326841,11.3375,79.427,79.383,32.71779119]
[1770832327044,10.90456546,79.44,79.383,32.71779119]
[1770832327238,10.90456546,79.47,79.411,32.71779119]
[1770832327440,10.90456546,79.49,79.411,32.71779119]
[1770832328049,10.90456546,79.49,79.425,32.71820054]
[1770832328345,11.3297,79.481,79.432,32.71820054]
[1770832329753,11.3297,79.481,79.435,32.75989631]
[1770832330843,11.3297,79.481,79.438,11.3357]
[1770832331252,11.3297,79.481,79.435,32.75989631]
[1770832331448,10.90456546,79.49,79.437,32.78083647]
[1770832331449,11.3284,79.49,79.437,32.78083647]
[1770832331646,10.90456546,79.51,79.437,32.78083647]
[1770832332249,11.3279,79.494,79.444,11.3348]
[1770832332447,11.3279,79.494,79.412,22.6788]
[1770832332448,11.3279,79.494,79.445,32.78128135]
[1770832332849,11.3288,79.488,79.446,11.3345]
[1770832333655,11.3298,79.48,79.412,32.78365554]
[1770832334761,11.3298,79.48,79.427,32.77703492]
[1770832335956,11.3298,79.48,79.432,32.77745912]
[1770832336356,11.3288,79.487,79.435,32.77745912]
[1770832337154,501.43217352,79.52,79.41,10.90456546]
[1770832337155,14.88267616,79.543,79.457,32.78122476]
[1770832337460,14.88267616,79.543,79.46,10.90456546]
[1770832337857,14.88226474,79.561,79.48,10.90456546]
[1770832338361,14.88226474,79.539,79.46,100.46]
[1770832338562,14.88226474,79.539,79.45,10.90456546]
[1770832338563,14.88226474,79.539,79.458,100.46]
[1770832338861,11.3223,79.533,79.478,11.33]
[1770832339161,15.00807497,79.533,79.436,22.672]
[1770832339364,15.00807497,79.533,79.45,10.90456546]
[1770832339956,15.00807497,79.533,79.451,114.6]
[1770832340256,15.00807497,79.533,79.469,11.3312]
[1770832340562,15.00614509,79.519,79.43,10.90456546]
[1770832340962,14.90780574,79.509,79.428,109.36]
[1770832341761,10.85832328,79.51,79.42,10.85832328]
[1770832341762,14.90780574,79.5,79.42,10.85832328]
[1770832341959,14.90546561,79.529,79.44,10.85832328]
[1770832342163,11.3257,79.509,79.46,11.3325]
[1770832342761,11.3244,79.518,79.46,11.3325]
[1770832343271,11.3244,79.518,79.467,11.3316]
[1770832343965,11.323,79.528,79.475,11.3304]
[1770832344465,14.85564334,79.548,79.461,100.42]
[1770832344664,11.3203,79.547,79.496,11.3274]
[1770832345367,14.86901609,79.543,79.487,11.3287]
[1770832346862,11.3216,79.538,79.494,11.3278]
[1770832347563,14.89820538,79.53,79.402,176.4145]
[1770832347770,14.89820538,79.519,79.43,10.85832328]
[1770832348472,26.2217479,79.51,79.463,11.3322]
[1770832349063,26.156851,79.505,79.463,11.3322]
[1770832349259,14.830551,79.505,79.43,10.85832328]
[1770832350060,14.830551,79.505,79.455,11.3332]
[1770832350268,10.85832328,79.52,79.431,22.6735]
[1770832350574,14.82839099,79.519,79.431,22.6735]
[1770832350966,11.3252,79.513,79.473,11.3307]
[1770832351572,11.3261,79.506,79.461,11.3325]
[1770832352364,11.3271,79.499,79.453,11.3335]
[1770832352568,14.82839099,79.519,79.444,113.88]
[1770832354475,11.3244,79.518,79.444,113.88]
[1770832354674,26.19098262,79.518,79.444,113.88]
[1770832355373,26.19098262,79.518,79.478,11.33]
[1770832356077,14.85643399,79.517,79.478,11.33]
[1770832356282,11.3248,79.515,79.47,11.3312]
[1770832357082,14.85643399,79.517,79.444,113.88]
[1770832357083,14.85643399,79.517,79.476,11.3302]
[1770832357286,14.85643399,79.517,79.449,100.4]
[1770832357983,14.84404471,79.514,79.433,123.0728]
[1770832358984,14.84404471,79.514,79.434,114.32]
[1770832359783,14.81486712,79.512,79.465,11.3318]
[1770832360878,14.81486712,79.512,79.467,11.3316]
[1770832361585,14.80402236,79.51,79.467,11.3316]
[1770832362079,11.3254,79.511,79.434,114.32]
[1770832362080,14.80213638,79.507,79.46,11.3326]
[1770832362286,14.80213638,79.499,79.414,22.6784]
[1770832362481,14.80213638,79.499,79.415,117.26]
[1770832362684,14.80213638,79.479,79.415,117.26]
[1770832363385,14.82357404,79.457,79.384,125.28]
[1770832363687,14.82357404,79.481,79.424,11.3377]
[1770832363881,11.3311,79.471,79.405,100.4]
[1770832364283,14.82180408,79.496,79.4,10.85832328]
[1770832364481,14.82180408,79.496,79.42,10.85832328]
[1770832364986,14.82180408,79.496,79.453,11.3336]
[1770832365182,14.82180408,79.496,79.42,10.85832328]
[1770832365488,14.80748875,79.511,79.461,11.3325]
[1770832366184,14.80571422,79.492,79.443,11.3349]
[1770832366986,14.98913281,79.509,79.458,11.3329]
[1770832367188,14.98913281,79.509,79.442,185.66]
[1770832367388,14.98913281,79.499,79.442,185.66]
[1770832367579,14.98913281,79.498,79.442,196.9951]
[1770832367776,14.98913281,79.498,79.442,185.66]
[1770832368177,11.3276,79.496,79.451,11.3339]
[1770832368592,14.98796316,79.514,79.442,185.66]
[1770832368986,14.94428397,79.505,79.442,185.66]
[1770832370097,14.94301066,79.5,79.442,185.66]
[1770832370992,14.94301066,79.5,79.461,11.3324]
[1770832371192,14.94301066,79.5,79.442,185.66]
[1770832371693,14.87266621,79.535,79.46,10.85832328]
[1770832372192,14.87266621,79.535,79.489,11.3284]
[1770832373693,10.85832328,79.55,79.456,100.42]
[1770832373694,14.60829433,79.529,79.456,100.42]
[1770832374088,14.60620525,79.552,79.502,11.3265]
[1770832375195,14.86893124,79.543,79.494,11.3277]
[1770832375794,14.86893124,79.543,79.501,11.3268]
[1770832377001,11.3186,79.559,79.51,11.3254]
[1770832377598,15.01535087,79.56,79.518,11.3243]
[1770832377790,15.01535087,79.553,79.49,10.85832328]
[1770832377990,26.33475087,79.553,79.49,10.85832328]
[1770832378190,15.01535087,79.553,79.49,10.85832328]
[1770832378586,26.33582327,79.539,79.49,11.3282]
[1770832378785,10.85832328,79.56,79.47,10.85832328]
[1770832378786,15.01615667,79.555,79.48,102.86]
[1770832379088,15.01615667,79.553,79.48,102.86]
[1770832379397,11.3202,79.548,79.497,11.3273]
[1770832379590,10.85832328,79.56,79.497,11.3273]
[1770832379591,15.01615667,79.547,79.497,11.3273]
[1770832380390,15.01615667,79.547,79.486,11.3288]
[1770832380594,15.01615667,79.547,79.472,101.58]
[1770832381390,15.01666607,79.543,79.5,11.3269]
[1770832382706,15.0157928,79.562,79.49,10.85832328]
[1770832383201,14.97367969,79.553,79.49,10.85832328]
[1770832384098,14.97272883,79.55,79.507,11.3259]
[1770832384288,14.97272883,79.55,79.47,10.85832328]
[1770832384494,14.97272883,79.55,79.471,100.38]
[1770832384795,14.97272883,79.566,79.49,10.85832328]
[1770832385199,14.98725733,79.553,79.49,10.85832328]
[1770832385597,14.98725733,79.553,79.45,12.59]
[1770832385598,10.85832328,79.54,79.45,10.85832328]
[1770832385797,14.98636697,79.539,79.451,110.74]
[1770832386398,14.98636697,79.539,79.47,10.85832328]
[1770832386601,14.98636697,79.539,79.471,186.34]
[1770832387698,11.3236,79.524,79.481,11.3296]
[1770832387995,11.3236,79.524,79.45,10.85832328]
[1770832387996,14.93552501,79.523,79.45,10.85832328]
[1770832389702,11.3245,79.518,79.478,11.3301]
[1770832389903,15.05527221,79.517,79.478,11.3301]
[1770832390803,11.3247,79.516,79.478,11.3301]
[1770832391001,26.34637968,79.516,79.478,11.3301]
[1770832391205,15.02167968,79.515,79.448,100.36]
[1770832391407,15.02167968,79.499,79.41,33.53762328]
[1770832391595,15.02167968,79.499,79.411,100.38]
[1770832391996,15.02093053,79.479,79.435,11.3361]
[1770832392805,14.97167566,79.477,79.39,33.54342328]
[1770832393015,14.97167566,79.493,79.41,10.85832328]
[1770832394609,14.97084032,79.478,79.427,11.3373]
[1770832395808,11.3305,79.476,79.427,11.3373]
[1770832396109,14.99305504,79.475,79.427,11.3373]
[1770832396308,11.3284,79.49,79.399,22.6827]
[1770832396604,11.3284,79.49,79.42,10.85832328]
[1770832396911,14.98183781,79.489,79.42,10.85832328]
[1770832397705,11.3288,79.487,79.44,11.3354]
[1770832397906,14.98106298,79.486,79.44,11.3354]
[1770832399407,11.3299,79.48,79.43,11.3369]
[1770832399611,14.99824509,79.479,79.43,11.3369]
[1770832400506,14.99752587,79.476,79.419,100.4]
[1770832400710,14.99752587,79.476,79.39,10.85832328]
[1770832401102,14.96656747,79.457,79.39,10.85832328]
[1770832401711,14.96656747,79.457,79.391,186.42]
[1770832401917,11.3332,79.456,79.405,11.3404]
[1770832402111,14.96656747,79.457,79.391,186.42]
[1770832402311,14.96656747,79.457,79.384,186.64]
[1770832403808,14.96656747,79.457,79.409,11.3398]
[1770832404811,11.3332,79.456,79.409,11.3398]
[1770832405005,15.04804387,79.455,79.4,11.3411]
[1770832405213,10.87054809,79.45,79.384,186.64]
[1770832405414,15.04804387,79.446,79.384,186.64]
[1770832405802,15.04804387,79.446,79.36,10.87054809]
[1770832406005,15.04804387,79.446,79.362,187.72]
[1770832406404,15.04812697,79.444,79.362,187.72]
[1770832407210,15.04812697,79.444,79.401,11.341]
[1770832407515,15.04812697,79.444,79.362,187.72]
[1770832407516,15.15178461,79.462,79.398,188.7]
[1770832407710,10.87054809,79.47,79.399,188.7]
[1770832407711,15.15178461,79.442,79.399,188.7]
[1770832407918,15.15178461,79.442,79.387,188.7]
[1770832408211,15.15178461,79.442,79.384,188.8]
[1770832408412,11.3364,79.434,79.392,11.3422]
[1770832408710,15.15183473,79.433,79.384,188.8]
[1770832408912,11.3367,79.432,79.391,11.3424]
[1770832409115,15.29945302,79.431,79.384,188.8]
[1770832409308,15.29945302,79.431,79.378,189.1]
[1770832409708,15.29945302,79.431,79.384,11.3435]
[1770832410224,11.3372,79.429,79.378,189.1]
[1770832410403,10.87054809,79.43,79.377,11.3444]
[1770832410404,15.29947042,79.428,79.377,11.3444]
[1770832410807,15.29947042,79.428,79.368,189.42]
[1770832411309,15.29947042,79.428,79.369,189.52]
[1770832411507,15.29947042,79.428,79.392,11.3423]
[1770832412217,15.29947042,79.428,79.384,11.3434]
[1770832413710,11.3375,79.427,79.384,11.3434]
[1770832413918,15.12146334,79.426,79.372,11.3451]
[1770832414112,15.12146334,79.409,79.352,100.46]
[1770832414313,15.12146334,79.432,79.352,100.46]
[1770832415715,15.03965773,79.429,79.352,100.46]
[1770832416813,11.3375,79.426,79.381,11.3439]
[1770832419012,15.11868031,79.425,79.381,11.3439]
[1770832421712,15.11868031,79.425,79.371,11.3453]
[1770832422716,11.3391,79.415,79.371,11.3453]
[1770832424624,11.3382,79.421,79.376,11.3445]
[1770832424820,15.12470728,79.42,79.376,11.3445]
[1770832425026,4.06237349,79.41,79.376,11.3445]
[1770832426324,4.06237349,79.41,79.36,4.06237349]
[1770832427828,4.06237349,79.41,79.38,11.3439]
[1770832428724,4.06237349,79.42,79.387,11.343]
[1770832433730,19.23483008,79.42,79.387,11.343]
[1770832437131,15.26854715,79.409,79.373,11.3451]
[1770832437342,4.06237349,79.42,79.36,4.06237349]
[1770832437535,11.61027879,79.436,79.352,100.46]
[1770832437536,15.26854715,79.424,79.37,4.06237349]
[1770832437736,15.26854715,79.424,79.399,11.3412]
[1770832437936,15.26854715,79.424,79.38,4.06237349]
[1770832438744,15.26854715,79.424,79.393,11.3421]
[1770832438948,4.06237349,79.41,79.36,4.06237349]
[1770832439139,15.05410085,79.419,79.36,4.06237349]
[1770832440141,15.05410085,79.419,79.37,4.06237349]
[1770832442237,15.05410085,79.419,79.388,11.3428]
[1770832442438,15.07867979,79.409,79.36,4.06237349]
[1770832443037,15.06296605,79.407,79.374,11.3449]
[1770832443345,15.06296605,79.407,79.355,125.36]
[1770832443746,15.59671135,79.439,79.34,4.06237349]
[1770832443747,15.06301483,79.399,79.34,4.06237349]
[1770832443940,15.06301483,79.389,79.33,4.06237349]
[1770832445645,15.11627314,79.359,79.3,342.89146028]
[1770832445851,15.11631215,79.349,79.287,187.34]
[1770832446048,15.11631215,79.339,79.31,11.354]
[1770832447939,15.11631215,79.339,79.288,100.52]
[1770832448140,15.11631215,79.339,79.27,139.40004986]
[1770832449241,15.11631215,79.339,79.301,11.3553]
[1770832449446,15.11631215,79.339,79.266,2.18811501]
[1770832449647,9.57336014,79.309,79.239,1.01360465]
[1770832449845,9.57336014,79.289,79.224,1.01353279]
[1770832450951,9.57336014,79.287,79.222,11.3667]
[1770832451151,9.57336014,79.269,79.209,1.21966885]
[1770832451352,9.57336014,79.269,79.194,1.22582596]
[1770832451754,9.57336014,79.269,79.201,11.3696]
[1770832452455,9.57336014,79.267,79.201,11.3696]
[1770832453150,9.61724377,79.249,79.178,0.68456276]
[1770832454550,9.61724377,79.249,79.147,251.96]
[1770832454551,9.61721958,79.229,79.162,0.69024422]
[1770832454755,9.61721958,79.209,79.13,0.69024422]
[1770832455056,9.61721958,79.209,79.134,2.19794795]
[1770832455356,9.61721958,79.209,79.135,0.92997522]
[1770832455554,9.61721958,79.209,79.15,11.377]
[1770832455762,9.57336014,79.226,79.151,0.92997522]
[1770832455960,9.57336014,79.226,79.14,10.90004986]
[1770832455961,9.57336014,79.226,79.153,0.9300896]
[1770832456258,9.57336014,79.213,79.153,0.9300896]
[1770832456757,9.57336014,79.209,79.148,11.3773]
[1770832457256,9.57336014,79.209,79.137,0.93590659]
[1770832457654,11.3691,79.206,79.138,11.3787]
[1770832457855,9.57336014,79.205,79.137,0.93590659]
[1770832458356,9.57336014,79.205,79.137,12.31470659]
[1770832459354,9.57336014,79.205,79.146,0.97188683]
[1770832459761,9.57336014,79.205,79.136,150.4]
[1770832459958,9.57336014,79.179,79.121,11.3811]
[1770832460256,9.57336014,79.199,79.122,0.9774157]
[1770832460459,9.57336014,79.199,79.143,1.00492197]
[1770832460960,9.57336014,79.199,79.114,2.19842699]
[1770832460961,9.42603242,79.219,79.172,11.3738]
[1770832461360,9.42603242,79.219,79.161,1.13367339]
[1770832461662,9.42603242,79.219,79.173,11.3737]
[1770832462262,9.42603242,79.219,79.163,11.3751]
[1770832462459,9.42603242,79.219,79.156,100.7]
[1770832463051,9.42603242,79.219,79.167,11.3745]
[1770832465759,9.26905733,79.218,79.155,11.3762]
[1770832466464,9.26905733,79.218,79.167,11.3745]
[1770832466762,9.24854611,79.239,79.168,1.476649]
[1770832467756,9.24854611,79.239,79.188,11.3715]
[1770832468762,9.24854611,79.239,79.197,11.3702]
[1770832468960,9.31743585,79.257,79.197,11.3702]
[1770832470366,9.31743585,79.257,79.208,11.3686]
[1770832470669,9.31743585,79.257,79.197,1.38579362]
[1770832471369,9.31844464,79.255,79.181,1.38808728]
[1770832471566,9.31844464,79.255,79.187,11.3717]
[1770832471865,9.31844464,79.255,79.181,1.38808728]
[1770832471866,9.31835921,79.248,79.181,1.38808728]
[1770832472059,9.31835921,79.248,79.183,1.38825814]
[1770832472771,9.31835921,79.248,79.208,11.3686]
[1770832474967,9.30876582,79.266,79.201,1.42035304]
[1770832475366,9.28810751,79.259,79.185,1.46609634]
[1770832476872,9.28810751,79.259,79.158,60.6415]
[1770832476873,9.28810751,79.259,79.206,11.3689]
[1770832477063,9.28810751,79.259,79.185,1.43306431]
[1770832478180,9.30666691,79.248,79.203,11.3694]
[1770832479075,9.30675089,79.279,79.201,1.44150516]
[1770832479579,9.30675089,79.257,79.184,1.44562993]
[1770832480579,9.30667008,79.252,79.203,11.3693]
[1770832481373,9.30667008,79.252,79.21,11.3684]
[1770832484385,9.30667008,79.252,79.217,11.3674]
[1770832486276,9.22566894,79.268,79.225,11.3662]
[1770832486677,9.22566894,79.268,79.213,1.63573833]
[1770832487584,11.3604,79.266,79.222,11.3666]
[1770832488081,9.22566894,79.268,79.213,1.63573833]
[1770832488283,11.3603,79.267,79.229,11.3657]
[1770832488878,20.52899074,79.265,79.222,11.3666]
[1770832489084,9.16839074,79.264,79.222,11.3666]
[1770832489480,9.16839074,79.261,79.222,11.3666]
[1770832490374,9.60880591,79.259,79.212,11.368]
[1770832490779,4.07708647,79.25,79.201,1.82153131]
[1770832490985,9.60880591,79.259,79.201,1.82153131]
[1770832491579,9.60880591,79.275,79.215,1.8252241]
[1770832492488,9.60880591,79.275,79.233,11.3651]
[1770832492989,9.60880591,79.275,79.239,11.3642]
[1770832493194,9.60880591,79.275,79.215,1.8252241]
[1770832494699,22.81156736,79.321,79.21,10.92344503]
[1770832494700,9.60880591,79.29,79.261,11.3611]
[1770832496185,9.60880591,79.29,79.231,1.79379633]
[1770832496186,9.60880591,79.29,79.253,11.3622]
[1770832496595,9.60880591,79.29,79.231,1.79379633]
[1770832498590,9.60880591,79.29,79.254,11.362]
[1770832499196,9.60880591,79.29,79.259,11.3612]
[1770832500297,9.60880591,79.29,79.245,2.08892079]
[1770832500298,9.60880591,79.29,79.266,11.3602]
[1770832500596,9.60880591,79.306,79.266,11.3602]
[1770832500895,9.60880591,79.306,79.23,10.92344503]
[1770832500896,9.60880591,79.306,79.272,11.3594]
[1770832501085,9.60880591,79.298,79.244,2.14022414]
[1770832501284,9.60880591,79.298,79.217,22.7347]
[1770832501285,9.60880591,79.298,79.246,11.3632]
[1770832501692,9.60880591,79.297,79.246,11.3632]
[1770832502292,9.60880591,79.279,79.236,11.3646]
[1770832503802,9.60880591,79.276,79.236,11.3646]
[1770832504104,9.60880591,79.276,79.229,11.3657]
[1770832504294,9.60880591,79.276,79.215,2.14359123]
[1770832504496,9.60880591,79.307,79.215,2.14359123]
[1770832504691,9.60880591,79.298,79.257,11.3616]
[1770832506100,9.60880591,79.298,79.25,11.3626]
[1770832506403,9.60880591,79.296,79.25,11.3626]
[1770832506598,11.3565,79.294,79.25,11.3626]
[1770832506799,9.60880591,79.292,79.211,2.22683932]
[1770832507002,9.60880591,79.29,79.211,2.22683932]
[1770832507308,9.60880591,79.288,79.211,2.22683932]
[1770832507512,9.60880591,79.286,79.211,2.22683932]
[1770832507697,11.3593,79.274,79.211,2.22683932]
[1770832507897,9.60880591,79.273,79.211,2.22683932]
[1770832508614,9.60880591,79.271,79.211,2.22683932]
[1770832509207,9.60880591,79.271,79.234,11.3648]
[1770832509411,9.60880591,79.271,79.211,2.22683932]
[1770832509805,9.60880591,79.268,79.219,11.3671]
[1770832511210,10.92344503,79.28,79.219,11.3671]
[1770832511211,9.60880591,79.265,79.219,11.3671]
[1770832512301,9.14311869,79.264,79.219,11.3671]
[1770832512505,9.60880591,79.265,79.219,11.3671]
[1770832512808,9.60880591,79.263,79.219,11.3671]
[1770832513008,9.60880591,79.261,79.211,11.3682]
[1770832513210,9.60880591,79.259,79.211,11.3682]
[1770832513409,9.60880591,79.257,79.211,11.3682]
[1770832513600,10.92344503,79.28,79.197,2.24674029]
[1770832513601,9.60880591,79.254,79.204,11.3692]
[1770832513803,9.60880591,79.252,79.204,11.3692]
[1770832514009,9.60880591,79.25,79.204,11.3692]
[1770832514206,9.60880591,79.245,79.204,11.3692]
[1770832514407,9.60880591,79.243,79.204,11.3692]
[1770832522519,9.48693049,79.241,79.204,11.3692]
[1770832522720,9.48693049,79.241,79.198,11.37]
[1770832523219,20.85113049,79.24,79.204,11.3693]
[1770832523804,9.48693049,79.233,79.195,11.3705]
[1770832525014,9.48693049,79.223,79.185,11.3719]
[1770832528317,9.48693049,79.223,79.19,11.3711]
[1770832529816,11.3667,79.222,79.17,2.8515696]
[1770832530013,9.64931547,79.221,79.17,2.8515696]
[1770832530919,9.64931547,79.216,79.177,11.3731]
[1770832531522,9.64931547,79.212,79.177,11.3731]
[1770832532819,9.23549457,79.224,79.188,11.3715]
[1770832533019,9.64931547,79.227,79.181,3.06194921]
[1770832533720,9.64931547,79.227,79.18,4.08178903]
[1770832533721,9.64931547,79.245,79.188,3.06382137]
[1770832533922,4.08178903,79.23,79.188,3.06382137]
[1770832534110,4.08178903,79.23,79.201,11.3696]
[1770832534432,9.64931547,79.229,79.201,11.3696]
[1770832535421,13.7311045,79.24,79.191,3.08232619]
[1770832535621,9.64931547,79.256,79.205,3.08232619]
[1770832536121,11.56260465,79.285,79.211,3.0843357]
[1770832536122,4.08178903,79.27,79.211,3.0843357]
[1770832536326,4.08178903,79.24,79.192,3.0843357]
[1770832536526,4.08178903,79.23,79.181,3.0843357]
[1770832537027,9.64931547,79.239,79.181,3.0843357]
[1770832537924,9.64931547,79.239,79.203,11.3693]
[1770832538126,9.64931547,79.239,79.181,3.0843357]
[1770832538323,9.64931547,79.229,79.18,11.3726]
[1770832538628,9.64931547,79.229,79.167,3.20522297]
[1770832539425,9.64931547,79.229,79.193,11.3708]
[1770832539831,9.64931547,79.229,79.18,3.7341118]
[1770832540826,9.64931547,79.229,79.186,11.3718]
[1770832542534,9.64931547,79.229,79.155,22.7524]
[1770832542535,9.64931547,79.225,79.181,11.3725]
[1770832543436,9.64931547,79.218,79.174,11.3736]
[1770832543928,9.64931547,79.218,79.165,3.19746779]
[1770832543929,9.64931547,79.218,79.18,11.3726]
[1770832544934,9.64931547,79.23,79.187,11.3717]
[1770832545233,9.23249355,79.248,79.188,3.18147054]
[1770832545535,9.2304269,79.261,79.19,3.18147054]
[1770832545734,9.2304269,79.26,79.19,3.18147054]
[1770832545935,9.2304269,79.259,79.19,3.18147054]
[1770832546134,9.2304269,79.258,79.208,3.18332622]
[1770832546343,9.2304269,79.257,79.208,3.18332622]
[1770832546633,9.64931547,79.262,79.208,3.18332622]
[1770832546837,9.23524848,79.261,79.208,3.18332622]
[1770832547131,9.64931547,79.259,79.218,11.3672]
[1770832547335,9.64931547,79.257,79.218,11.3672]
[1770832547630,9.19343765,79.256,79.218,11.3672]
[1770832547835,9.64931547,79.257,79.218,11.3672]
[1770832548130,9.19380899,79.256,79.218,11.3672]
[1770832548332,9.64931547,79.254,79.205,11.369]
[1770832548537,9.64931547,79.252,79.205,11.369]
[1770832548740,9.64931547,79.25,79.192,2.92773166]
[1770832549032,9.64931547,79.249,79.211,11.3682]
[1770832549234,9.64931547,79.247,79.192,2.92773166]
[1770832549437,9.64931547,79.245,79.192,2.92773166]
[1770832549635,9.64931547,79.238,79.195,11.3705]
[1770832549839,9.64931547,79.236,79.195,11.3705]
[1770832550035,9.64931547,79.234,79.195,11.3705]
[1770832550335,9.64931547,79.23,79.187,11.3716]
[1770832550526,9.68517194,79.228,79.187,11.3716]
[1770832550727,9.68517194,79.228,79.178,2.94523733]
[1770832551332,9.68517194,79.228,79.191,11.371]
[1770832551537,9.21322028,79.227,79.191,11.371]
[1770832551838,9.68517194,79.228,79.191,11.371]
[1770832552138,9.68517194,79.226,79.183,11.3721]
[1770832552340,9.68517194,79.224,79.183,11.3721]
[1770832552540,9.68517194,79.223,79.183,11.3721]
[1770832554447,9.68517194,79.221,79.183,11.3721]
[1770832554636,9.22119288,79.22,79.183,11.3721]
[1770832554836,9.68517194,79.221,79.183,11.3721]
[1770832556237,9.22628254,79.22,79.183,11.3721]
[1770832556442,9.22628254,79.219,79.183,11.3721]
[1770832556742,9.68517194,79.221,79.183,11.3721]
[1770832557040,9.22639758,79.22,79.183,11.3721]
[1770832557240,9.68517194,79.221,79.183,11.3721]
[1770832557241,9.22639758,79.219,79.183,11.3721]
[1770832557440,9.22639758,79.218,79.183,11.3721]
[1770832557642,9.68517194,79.221,79.183,11.3721]
[1770832557835,9.22863763,79.22,79.183,11.3721]
[1770832558031,9.22863763,79.219,79.183,11.3721]
[1770832558343,18.91380957,79.218,79.182,11.3724]
[1770832558539,9.22863763,79.217,79.182,11.3724]
[1770832558739,9.22863763,79.216,79.182,11.3724]
[1770832558930,9.22863763,79.215,79.182,11.3724]
[1770832559134,9.22863763,79.214,79.182,11.3724]
[1770832559333,9.68517194,79.218,79.182,11.3724]
[1770832559531,9.68517194,79.216,79.16,178.17106326]
[1770832559734,9.68517194,79.209,79.146,2.92463578]
[1770832559933,9.2291559,79.208,79.146,2.92463578]
[1770832560137,9.68517194,79.206,79.146,2.92463578]
[1770832560338,9.68517194,79.204,79.146,2.92463578]
[1770832560540,9.2291559,79.203,79.146,2.92463578]
[1770832560740,9.68517194,79.201,79.161,11.3753]
[1770832560938,9.68517194,79.199,79.161,11.3753]
[1770832561138,9.2291559,79.198,79.161,11.3753]
[1770832561337,9.2291559,79.197,79.161,11.3753]
[1770832561641,9.2291559,79.196,79.161,11.3753]
[1770832561846,9.2291559,79.195,79.161,11.3753]
[1770832562046,9.2291559,79.194,79.161,11.3753]
[1770832562247,9.22435059,79.193,79.161,11.3753]
[1770832562548,9.68517194,79.199,79.161,11.3753]
[1770832562748,9.22423553,79.198,79.161,11.3753]
[1770832562946,9.22423553,79.197,79.161,11.3753]
[1770832563251,9.22423553,79.196,79.161,11.3753]
[1770832563445,11.56260465,79.225,79.158,2.96604972]
[1770832563641,9.68517194,79.231,79.159,2.96604972]
[1770832563944,9.68517194,79.207,79.161,11.3754]
[1770832564338,9.68517194,79.207,79.145,2.96619152]
[1770832565948,9.68517194,79.207,79.167,11.3745]
[1770832566439,9.68517194,79.22,79.176,11.3732]
[1770832566634,9.68517194,79.22,79.155,2.7600275]
[1770832566842,22.81156736,79.247,79.146,100.76]
[1770832566843,9.68517194,79.209,79.146,100.76]
[1770832567348,9.68517194,79.209,79.14,2.7600275]
[1770832567850,9.68517194,79.189,79.114,2.48330232]
[1770832568048,9.68517194,79.169,79.106,100.78]
[1770832568251,9.68517194,79.16,79.101,2.48497422]
[1770832568646,9.68517194,79.16,79.112,11.3823]
[1770832568847,9.68517194,79.16,79.112,13.89537493]
[1770832569348,9.68517194,79.159,79.112,13.89537493]
[1770832570242,9.68517194,79.159,79.112,11.3823]
[1770832570547,9.68517194,79.159,79.117,11.3817]
[1770832571747,9.68517194,79.158,79.109,11.3828]
[1770832573846,9.68517194,79.157,79.109,11.3828]
[1770832574252,9.68517194,79.155,79.109,11.3828]
[1770832574946,9.68517194,79.149,79.101,11.3839]
[1770832575449,9.68517194,79.149,79.098,2.49947895]
[1770832575650,10.94048145,79.17,79.098,2.49947895]